bitfinex-derivatives/quotes_SOLF0:USTF0_20250114
["timestamp","ask_amount","ask_price","bid_price","bid_amount"]
[1736880961534,7.90923288,186.98,186.95,2.6758]
[1736880961837,10.58473288,186.98,186.95,2.6758]
[1736880962029,7.90923288,186.97,186.95,2.6758]
[1736880962234,8.2154,186.99,186.9,7.90923288]
[1736880962433,7.90923288,186.98,186.9,7.90923288]
[1736880962633,7.90923288,186.96,186.94,2.676]
[1736880966939,7.90923288,186.96,186.9,7.90923288]
[1736880967241,7.90923288,186.96,186.95,2.6759]
[1736880972044,10.58503288,186.96,186.88,7.90923288]
[1736880972245,7.90923288,186.93,186.88,7.90923288]
[1736880973246,7.90923288,186.93,186.92,2.6762]
[1736880974849,7.90923288,186.95,186.93,2.6761]
[1736880975048,7.90923288,186.95,186.88,7.90923288]
[1736880975445,7.90923288,186.96,186.9,7.90923288]
[1736880977151,7.90923288,186.96,186.94,2.6759]
[1736880980855,7.90923288,186.96,186.87,6.81957122]
[1736880981052,7.90923288,186.92,186.87,6.81957122]
[1736880981857,7.90923288,186.94,186.88,7.90923288]
[1736880982355,7.90923288,186.94,186.92,2.6763]
[1736880982958,10.58533288,186.94,186.91,2.6765]
[1736880983256,7.90923288,186.94,186.88,7.90923288]
[1736880983855,7.90923288,186.94,186.91,2.6764]
[1736880984156,7.90923288,186.94,186.88,7.90923288]
[1736880985062,7.90923288,186.94,186.92,2.6763]
[1736880986559,2.676,186.95,186.88,7.90923288]
[1736880986758,10.58523288,186.95,186.93,2.6762]
[1736880988060,7.90923288,186.95,186.87,6.81957122]
[1736880988250,7.90923288,186.92,186.91,2.6765]
[1736880988960,2.6762,186.94,186.91,2.6765]
[1736880989155,3.2157,186.96,186.94,2.676]
[1736880989360,7.90923288,186.95,186.94,2.676]
[1736880993865,7.90923288,186.95,186.88,7.90923288]
[1736880994061,3.2157,186.96,186.88,7.90923288]
[1736880994255,13.42923288,186.96,186.9,7.90923288]
[1736880994459,5.52,186.96,186.9,7.90923288]
[1736880994661,5.52,186.96,186.91,2.6764]
[1736880994964,5.52,186.96,186.9,7.90923288]
[1736880995365,5.52,186.96,186.94,2.676]
[1736880996367,5.52,186.96,186.9,7.90923288]
[1736880996662,5.52,186.96,186.95,2.6759]
[1736880997566,10.58493288,186.97,186.95,2.6759]
[1736880998965,5.52,186.98,186.95,2.6759]
[1736880999170,7.90923288,186.97,186.9,7.90923288]
[1736880999373,7.90923288,186.97,186.96,2.6758]
[1736880999672,7.90923288,186.97,186.9,7.90923288]
[1736880999871,10.58493288,186.97,186.95,2.6759]
[1736881000170,7.90923288,186.97,186.9,7.90923288]
[1736881000370,2.6762,186.93,186.87,14.7288041]
[1736881000569,7.90923288,186.92,186.87,6.81957122]
[1736881001069,7.90923288,186.92,186.9,2.6765]
[1736881001565,10.58563288,186.92,186.87,6.81957122]
[1736881001769,10.58563288,186.92,186.89,2.6767]
[1736881002466,7.90923288,186.92,186.87,6.81957122]
[1736881002766,7.90923288,186.92,186.78,100.18]
[1736881002767,7.90923288,186.88,186.78,105.5366]
[1736881002965,7.90923288,186.88,186.78,100.18]
[1736881003166,7.90923288,186.88,186.84,2.6774]
[1736881003167,10.58623288,186.88,186.84,2.6774]
[1736881003368,10.58623288,186.88,186.81,7.90923288]
[1736881003569,7.90923288,186.88,186.81,7.90923288]
[1736881003865,10.58623288,186.88,186.81,7.90923288]
[1736881004071,7.90923288,186.86,186.81,7.90923288]
[1736881006476,7.90923288,186.86,186.84,2.6774]
[1736881006973,7.90923288,186.86,186.85,2.6774]
[1736881007372,10.58623288,186.88,186.85,2.6774]
[1736881009974,10.58623288,186.88,186.86,2.6772]
[1736881010974,10.58623288,186.88,186.85,2.6773]
[1736881011970,7.90923288,186.88,186.86,2.6772]
[1736881016077,7.90923288,186.88,186.87,2.6771]
[1736881017276,5.52,186.89,186.88,2.6769]
[1736881023787,7.90923288,186.89,186.84,2.6774]
[1736881023988,7.90923288,186.89,186.83,7.90923288]
[1736881025682,7.90923288,186.89,186.81,7.90923288]
[1736881025880,7.90923288,186.87,186.86,2.6771]
[1736881026084,7.90923288,186.87,186.8,108.67722326]
[1736881026690,10.58633288,186.87,186.84,2.6774]
[1736881028711,10.58633288,186.87,186.8,108.67722326]
[1736881028897,10.58633288,186.87,186.85,2.6774]
[1736881029191,7.90923288,186.87,186.85,2.6774]
[1736881035894,7.90923288,186.87,186.86,2.6772]
[1736881039500,195.0,186.94,186.82,7.90923288]
[1736881039700,7.90923288,186.9,186.88,2.6769]
[1736881041101,10.58593288,186.9,186.88,2.6769]
[1736881043002,10.58593288,186.9,186.82,7.90923288]
[1736881043303,7.90923288,186.88,186.87,2.677]
[1736881045403,2.6768,186.89,186.87,2.677]
[1736881045599,2.6768,186.89,186.82,7.90923288]
[1736881045600,10.58593288,186.9,186.84,7.90923288]
[1736881045901,10.58593288,186.9,186.83,7.90923288]
[1736881046103,10.58593288,186.9,186.87,2.677]
[1736881046505,7.90923288,186.88,186.81,7.90923288]
[1736881046802,10.58623288,186.88,186.85,2.6773]
[1736881051506,7.90923288,186.86,186.8,6.8224242]
[1736881051709,5.52,186.91,186.82,2.6777]
[1736881051710,7.90923288,186.83,186.82,2.6777]
[1736881059316,2.6766,186.91,186.88,2.6769]
[1736881059518,10.58583288,186.91,186.88,2.6769]
[1736881061021,198.2905,186.94,186.8,6.8224242]
[1736881061225,7.90923288,186.9,186.85,7.90923288]
[1736881061422,7.90923288,186.92,186.85,7.90923288]
[1736881061724,10.58563288,186.92,186.89,2.6768]
[1736881065623,2.6765,186.91,186.89,2.6768]
[1736881066220,2.6765,186.91,186.88,2.6769]
[1736881069427,2.6767,186.9,186.88,2.6769]
[1736881069622,10.58593288,186.9,186.88,2.6769]
[1736881070222,10.58593288,186.9,186.87,2.677]
[1736881071025,2.6775,186.85,186.82,2.6777]
[1736881071226,7.90923288,186.84,186.77,100.7867624]
[1736881071430,7.90923288,186.81,186.77,100.7867624]
[1736881071627,2.6778,186.83,186.8,2.6781]
[1736881071829,7.90923288,186.89,186.81,7.90923288]
[1736881072132,10.58613288,186.89,186.86,2.6772]
[1736881073431,7.90923288,186.89,186.88,2.6769]
[1736881073624,16.10583288,186.91,186.88,2.6769]
[1736881073830,16.10583288,186.91,186.85,7.90923288]
[1736881074733,10.58583288,186.91,186.85,7.90923288]
[1736881075635,10.58583288,186.91,186.88,2.6769]
[1736881078934,5.52,186.93,186.87,2.677]
[1736881078935,7.90923288,186.89,186.87,2.677]
[1736881080230,10.58603288,186.89,186.87,2.677]
[1736881080827,10.58603288,186.89,186.86,2.6772]
[1736881082642,7.90923288,186.89,186.88,2.6769]
[1736881082837,7.90923288,186.89,186.83,7.90923288]
[1736881084536,7.90923288,186.89,186.87,2.677]
[1736881086838,7.90923288,186.89,186.83,7.90923288]
[1736881087044,7.90923288,186.89,186.88,2.6769]
[1736881087441,7.90923288,186.89,186.83,7.90923288]
[1736881087644,7.90923288,186.89,186.87,2.677]
[1736881087840,2.6767,186.9,186.87,2.677]
[1736881088037,10.58593288,186.9,186.87,2.677]
[1736881088461,7.90923288,186.9,186.88,2.6769]
[1736881089444,10.58593288,186.9,186.87,2.677]
[1736881089938,2.6771,186.87,186.84,2.6774]
[1736881090135,7.90923288,186.88,186.8,7.90923288]
[1736881090733,2.6772,186.87,186.8,7.90923288]
[1736881092142,2.6772,186.87,186.82,2.6778]
[1736881092447,7.90923288,186.89,186.84,7.90923288]
[1736881092648,7.90923288,186.89,186.82,7.90923288]
[1736881093641,7.90923288,186.89,186.86,2.6771]
[1736881094545,7.90923288,186.89,186.82,7.90923288]
[1736881094742,7.90923288,186.89,186.84,2.6774]
[1736881094942,7.90923288,186.87,186.84,2.6774]
[1736881095142,7.90923288,186.85,186.82,2.6778]
[1736881096347,10.58663288,186.85,186.82,2.6778]
[1736881096948,7.90923288,186.86,186.8,7.90923288]
[1736881098242,7.90923288,186.86,186.84,2.6774]
[1736881099145,7.90923288,186.86,186.82,2.6777]
[1736881099349,7.90923288,186.84,186.82,2.6777]
[1736881099749,7.90923288,186.84,186.78,7.90923288]
[1736881101856,10.58683288,186.84,186.82,2.6778]
[1736881102248,7.90923288,186.84,186.82,2.6778]
[1736881105253,10.58673288,186.84,186.81,2.6779]
[1736881105457,10.58673288,186.84,186.78,7.90923288]
[1736881106456,7.90923288,186.84,186.82,2.6778]
[1736881111059,7.90923288,186.84,186.83,2.6776]
[1736881111258,2.6772,186.87,186.8,7.90923288]
[1736881111554,7.90923288,186.87,186.82,7.90923288]
[1736881113056,7.90923288,186.87,186.85,2.6773]
[1736881114661,10.58633288,186.87,186.85,2.6773]
[1736881115363,10.58633288,186.87,186.82,7.90923288]
[1736881115662,2.6771,186.87,186.84,2.6775]
[1736881115862,10.58633288,186.87,186.84,2.6775]
[1736881118764,2.6771,186.87,186.84,2.6775]
[1736881118956,10.58633288,186.87,186.84,2.6775]
[1736881120568,5.52,186.88,186.82,2.6777]
[1736881120569,7.90923288,186.85,186.82,2.6777]
[1736881120757,7.90923288,186.83,186.77,100.7867624]
[1736881121269,10.58693288,186.83,186.77,100.7867624]
[1736881121965,10.58693288,186.83,186.79,2.6781]
[1736881122165,7.90923288,186.81,186.77,100.7867624]
[1736881123068,7.90923288,186.81,186.8,2.6781]
[1736881125271,7.90923288,186.83,186.77,100.7867624]
[1736881125569,7.90923288,186.83,186.81,2.6779]
[1736881127571,10.58693288,186.83,186.8,2.678]
[1736881131974,7.90923288,186.83,186.77,100.7867624]
[1736881132173,2.678,186.81,186.78,2.6783]
[1736881132475,8.198,186.81,186.78,2.6783]
[1736881133074,2.6781,186.8,186.78,2.6783]
[1736881133277,2.6781,186.8,186.77,100.7867624]
[1736881133475,7.90923288,186.79,186.77,100.7867624]
[1736881133874,10.58743288,186.79,186.77,100.7867624]
[1736881136380,2.6784,186.78,186.75,2.6787]
[1736881136579,7.90923288,186.77,186.75,2.6787]
[1736881136779,2.6784,186.78,186.75,2.6787]
[1736881136980,10.58763288,186.78,186.76,2.6786]
[1736881138273,7.90923288,186.78,186.76,2.6786]
[1736881138778,7.90923288,186.78,186.77,2.6785]
[1736881142281,7.90923288,186.79,186.77,2.6785]
[1736881143582,10.58743288,186.79,186.77,2.6785]
[1736881153887,10.58743288,186.79,186.76,2.6786]
[1736881154182,7.90923288,186.77,186.76,2.6786]
[1736881154382,7.90923288,186.77,186.75,2.6787]
[1736881154786,7.90923288,186.77,186.72,6.82361446]
[1736881155686,10.58783288,186.77,186.72,6.82361446]
[1736881156088,7.90923288,186.77,186.72,6.82361446]
[1736881156689,7.90923288,186.77,186.76,2.6787]
[1736881157687,7.90923288,186.79,186.77,2.6784]
[1736881159185,1.6352,186.8,186.73,7.90923288]
[1736881159389,222.48561153,186.97,186.77,7.90923288]
[1736881159690,7.90923288,186.86,186.79,7.90923288]
[1736881160591,7.90923288,186.86,186.83,2.6776]
[1736881161888,10.58643288,186.86,186.83,2.6776]
[1736881163388,7.90923288,186.84,186.73,9.03638978]
[1736881163592,7.90923288,186.82,186.76,7.90923288]
[1736881163993,10.58703288,186.82,186.76,7.90923288]
[1736881165292,10.58703288,186.82,186.78,2.6782]
[1736881165490,10.58703288,186.82,186.76,7.90923288]
[1736881166595,10.58703288,186.82,186.79,2.6782]
[1736881168098,7.90923288,186.8,186.73,1.6322]
[1736881168294,10.58733288,186.8,186.77,2.6784]
[1736881170093,7.90923288,186.8,186.77,2.6784]
[1736881170296,7.90923288,186.78,186.76,2.6786]
[1736881171399,7.90923288,186.78,186.72,14.73284734]
[1736881171699,10.58773288,186.78,186.75,2.6787]
[1736881172595,7.90923288,186.76,186.72,6.82361446]
[1736881172794,7.90923288,186.76,186.74,2.6788]
[1736881173391,10.58793288,186.76,186.74,2.6788]
[1736881173586,10.58793288,186.76,186.72,6.82361446]
[1736881173587,7.90923288,186.76,186.72,6.82361446]
[1736881173788,7.90923288,186.76,186.72,2.6792]
[1736881174306,7.90923288,186.74,186.72,2.6792]
[1736881175299,10.58813288,186.74,186.71,103.50471597]
[1736881176597,10.58813288,186.74,186.72,2.6792]
[1736881176996,13.42923288,186.74,186.64,5.3607]
[1736881177200,7.90923288,186.72,186.7,2.6794]
[1736881180008,7.90923288,186.72,186.71,2.6794]
[1736881182514,10.58863288,186.72,186.63,1.6012]
[1736881182812,7.90923288,186.72,186.65,7.90923288]
[1736881183004,7.90923288,186.7,186.68,2.6797]
[1736881183209,7.90923288,186.7,186.65,7.90923288]
[1736881183907,10.58873288,186.7,186.67,2.6798]
[1736881187612,10.58873288,186.7,186.65,7.90923288]
[1736881187918,10.58863288,186.71,186.65,7.90923288]
[1736881188623,10.58863288,186.71,186.64,108.76341325]
[1736881188944,10.58863288,186.71,186.68,2.6797]
[1736881189216,10.58863288,186.71,186.64,108.76341325]
[1736881189217,7.90923288,186.71,186.64,108.76341325]
[1736881189918,7.90923288,186.71,186.69,2.6797]
[1736881190520,2.6794,186.72,186.69,2.6797]
[1736881190817,10.58863288,186.72,186.69,2.6797]
[1736881192315,7.90923288,186.7,186.69,2.6797]
[1736881192523,7.90923288,186.7,186.68,2.6798]
[1736881192821,7.90923288,186.7,186.65,7.90923288]
[1736881193217,7.90923288,186.7,186.68,2.6797]
[1736881195021,2.6795,186.71,186.65,7.90923288]
[1736881195320,10.58853288,186.72,186.69,2.6796]
[1736881196524,7.90923288,186.72,186.69,2.6796]
[1736881196823,2.6794,186.71,186.69,2.6796]
[1736881198422,7.90923288,186.7,186.69,2.6796]
[1736881200124,156.16635988,186.88,186.71,2.6794]
[1736881200330,156.16635988,186.88,186.67,7.90923288]
[1736881200331,7.90923288,186.74,186.67,7.90923288]
[1736881200524,7.90923288,186.75,186.69,7.90923288]
[1736881200729,3.3849,186.78,186.69,7.90923288]
[1736881200730,7.90923288,186.76,186.69,7.90923288]
[1736881201029,7.90923288,186.76,186.74,2.6789]
[1736881201826,2.6788,186.75,186.72,2.6791]
[1736881202031,7.90923288,186.74,186.69,7.90923288]
[1736881202229,7.90923288,186.72,186.67,7.90923288]
[1736881202835,7.90923288,186.72,186.7,2.6794]
[1736881205332,2.6791,186.73,186.7,2.6794]
[1736881205633,7.90923288,186.74,186.67,7.90923288]
[1736881206030,7.90923288,186.74,186.72,2.6792]
[1736881206431,7.90923288,186.74,186.66,7.90923288]
[1736881206631,7.90923288,186.71,186.69,2.6796]
[1736881207836,7.90923288,186.71,186.61,7.90923288]
[1736881208037,7.90923288,186.67,186.61,7.90923288]
[1736881208244,7.90923288,186.67,186.65,2.6801]
[1736881209838,2.6801,186.66,186.57,1.7256]
[1736881210043,7.90923288,186.63,186.58,7.90923288]
[1736881210235,7.90923288,186.63,186.55,29.61675914]
[1736881210436,7.90923288,186.61,186.59,2.681]
[1736881210638,7.90923288,186.61,186.55,29.61675914]
[1736881210943,7.90923288,186.59,186.56,2.6815]
[1736881212842,7.90923288,186.57,186.51,7.90923288]
[1736881213044,7.90923288,186.55,186.47,7.40418978]
[1736881213243,7.90923288,186.53,186.5,2.6823]
[1736881215341,10.59133288,186.53,186.48,2.6825]
[1736881215541,7.90923288,186.51,186.48,2.6825]
[1736881215845,7.90923288,186.51,186.39,7.40418978]
[1736881215846,7.90923288,186.49,186.45,2.683]
[1736881216136,3.254,186.52,186.45,10.59223288]
[1736881216340,7.90923288,186.49,186.45,2.683]
[1736881217242,10.59173288,186.49,186.45,2.683]
[1736881218844,7.90923288,186.47,186.45,2.683]
[1736881219342,7.90923288,186.47,186.4,7.90923288]
[1736881219654,7.90923288,186.45,186.4,7.90923288]
[1736881220044,7.90923288,186.45,186.42,2.6834]
[1736881220241,7.90923288,186.45,186.4,7.90923288]
[1736881220742,7.90923288,186.45,186.31,35.13675914]
[1736881221047,7.90923288,186.45,186.32,4.9165]
[1736881221547,7.90923288,186.45,186.38,7.90923288]
[1736881222053,1.6346,186.48,186.4,7.90923288]
[1736881222351,7.90923288,186.47,186.4,7.90923288]
[1736881222543,5.52,186.49,186.4,7.90923288]
[1736881222746,7.90923288,186.47,186.4,7.90923288]
[1736881223046,10.59203288,186.47,186.42,2.6835]
[1736881223552,7.90923288,186.47,186.45,2.683]
[1736881224249,7.90923288,186.47,186.44,2.6832]
[1736881224450,7.90923288,186.45,186.38,7.90923288]
[1736881224749,7.90923288,186.45,186.42,2.6835]
[1736881225746,2.683,186.46,186.42,2.6835]
[1736881226645,15.12345338,186.48,186.43,2.6833]
[1736881226846,15.12345338,186.48,186.36,12.44065338]
[1736881227152,12.44065338,186.48,186.36,12.44065338]
[1736881228253,12.44065338,186.45,186.33,101.0173279]
[1736881228485,12.44065338,186.42,186.38,2.684]
[1736881228653,17.96065338,186.42,186.38,2.684]
[1736881229068,17.96065338,186.42,186.37,2.6842]
[1736881229642,2.6837,186.41,186.37,2.6842]
[1736881230557,2.6838,186.4,186.35,2.6845]
[1736881230849,17.96065338,186.42,186.35,2.6845]
[1736881231055,2.6839,186.4,186.35,2.6845]
[1736881231251,12.44065338,186.39,186.35,2.6845]
[1736881231459,2.6841,186.38,186.34,2.6846]
[1736881231755,12.44065338,186.39,186.33,101.0173279]
[1736881231945,15.12465338,186.39,186.35,2.6844]
[1736881232157,15.12465338,186.39,186.33,101.0173279]
[1736881233252,15.12465338,186.39,186.36,2.6844]
[1736881234058,2.6838,186.4,186.37,2.6842]
[1736881234260,3.239,186.41,186.33,101.0173279]
[1736881234651,2.6839,186.4,186.36,2.6843]
[1736881235156,2.6839,186.4,186.33,101.0173279]
[1736881235373,8.2236,186.42,186.33,113.45798128]
[1736881235553,5.54,186.42,186.33,113.45798128]
[1736881236559,5.54,186.5,186.39,12.44065338]
[1736881236857,12.65548338,186.52,186.42,12.44065338]
[1736881237058,2.6823,186.51,186.45,2.6831]
[1736881237255,18.19548338,186.52,186.42,12.44065338]
[1736881237498,18.19548338,186.52,186.39,12.44065338]
[1736881237755,2.6828,186.48,186.44,2.6832]
[1736881237955,2.6828,186.48,186.39,12.44065338]
[1736881238259,2.6826,186.49,186.45,2.6831]
[1736881238453,5.54,186.5,186.39,12.44065338]
[1736881239560,2.6826,186.49,186.45,2.683]
[1736881239761,5.54,186.5,186.39,12.44065338]
[1736881240068,5.54,186.5,186.42,12.44065338]
[1736881241860,8.2224,186.5,186.46,2.6829]
[1736881242861,2.6824,186.5,186.46,2.6829]
[1736881245064,2.6824,186.5,186.4,3.3213]
[1736881245366,2.6824,186.5,186.47,2.6828]
[1736881248362,17.98065338,186.52,186.4,3.3213]
[1736881248363,2.6825,186.49,186.4,3.3213]
[1736881248868,2.6825,186.49,186.46,2.6829]
[1736881249755,2.6828,186.47,186.44,2.6832]
[1736881249956,2.6828,186.47,186.39,7.40418978]
[1736881250163,12.44065338,186.49,186.38,29.61675914]
[1736881251158,2.6828,186.48,186.44,2.6831]
[1736881251764,12.44065338,186.49,186.44,2.6831]
[1736881251962,2.6829,186.47,186.43,2.6833]
[1736881252161,2.6829,186.47,186.37,7.40418978]
[1736881252873,2.6829,186.47,186.38,4.97780744]
[1736881253069,2.6829,186.47,186.44,2.6832]
[1736881253455,7.96076736,186.46,186.4,7.96076736]
[1736881253858,7.96076736,186.46,186.37,49.5279889]
[1736881253859,7.96076736,186.44,186.42,2.6834]
[1736881254163,7.96076736,186.43,186.42,2.6834]
[1736881254767,7.96076736,186.43,186.41,2.6836]
[1736881256167,7.96076736,186.43,186.36,7.40418978]
[1736881256168,10.64426736,186.43,186.36,7.40418978]
[1736881256468,7.96076736,186.38,186.36,7.40418978]
[1736881256672,7.96076736,186.38,186.37,2.6841]
[1736881257369,7.96076736,186.39,186.34,108.97653393]
[1736881257570,2.6836,186.42,186.38,2.6841]
[1736881257867,2.6836,186.42,186.34,101.01576657]
[1736881258369,2.6836,186.42,186.36,2.6843]
[1736881258573,2.6836,186.42,186.34,101.01576657]
[1736881259371,2.6836,186.42,186.36,2.6843]
[1736881259574,2.6838,186.4,186.34,101.01576657]
[1736881260068,2.6838,186.4,186.37,2.6841]
[1736881260464,2.6837,186.41,186.38,2.6841]
[1736881260671,12.44675588,186.43,186.31,143.08949992]
[1736881260871,8.8432,186.44,186.34,12.44675588]
[1736881261068,11.5266,186.44,186.34,12.44675588]
[1736881261462,8.8432,186.44,186.34,12.44675588]
[1736881261763,2.6834,186.43,186.4,2.6837]
[1736881261968,2.6834,186.43,186.34,12.44675588]
[1736881262672,2.6834,186.43,186.4,2.6837]
[1736881263372,8.8432,186.44,186.4,2.6837]
[1736881263572,2.6835,186.42,186.4,2.6837]
[1736881263976,12.44675588,186.43,186.31,101.0259849]
[1736881264670,2.6841,186.38,186.31,101.0259849]
[1736881264972,17.96675588,186.37,186.32,2.685]
[1736881265176,2.6848,186.34,186.31,101.0259849]
[1736881265867,5.52,186.36,186.31,101.0259849]
[1736881266271,5.52,186.36,186.35,2.6845]
[1736881266775,5.52,186.36,186.31,101.0259849]
[1736881266970,5.52,186.36,186.33,2.6847]
[1736881267172,5.52,186.36,186.29,12.44675588]
[1736881267366,5.52,186.36,186.31,2.685]
[1736881267367,2.6846,186.35,186.31,2.685]
[1736881268084,2.6846,186.35,186.27,2.6857]
[1736881268388,5.52,186.36,186.24,6.84170816]
[1736881268590,5.52,186.36,186.23,19.85094566]
[1736881268878,12.44675588,186.34,186.3,2.6851]
[1736881269478,15.13145588,186.34,186.3,2.6851]
[1736881270179,12.44675588,186.34,186.3,2.6851]
[1736881270387,2.6848,186.33,186.3,2.6851]
[1736881270779,12.44675588,186.34,186.23,12.44675588]
[1736881270981,2.685,186.32,186.23,12.44675588]
[1736881271675,12.44675588,186.34,186.29,2.6854]
[1736881271876,2.6849,186.33,186.29,2.6854]
[1736881272080,2.6849,186.33,186.23,12.44675588]
[1736881272283,12.44675588,186.34,186.23,12.44675588]
[1736881272578,15.13145588,186.34,186.23,12.44675588]
[1736881272981,12.44675588,186.34,186.23,12.44675588]
[1736881273185,8.2446,186.35,186.31,2.685]
[1736881273378,5.56,186.35,186.23,12.44675588]
[1736881273576,2.6849,186.33,186.29,2.6854]
[1736881273771,5.56,186.35,186.23,12.44675588]
[1736881274176,5.56,186.35,186.33,2.6848]
[1736881276782,12.44675588,186.34,186.26,2.6858]
[1736881276983,12.44675588,186.28,186.22,101.0548292]
[1736881277288,12.44675588,186.25,186.19,6.84240783]
[1736881277483,2.6862,186.24,186.2,2.6866]
[1736881277676,2.6862,186.24,186.17,1.562]
[1736881277876,12.44675588,186.25,186.17,1.562]
[1736881278078,12.44675588,186.25,186.21,2.6865]
[1736881278079,15.13275588,186.25,186.21,2.6865]
[1736881278278,12.44675588,186.25,186.17,1.562]
[1736881278482,12.44675588,186.25,186.19,2.6868]
[1736881278677,12.44675588,186.25,186.17,1.562]
[1736881278877,5.56,186.28,186.19,12.44675588]
[1736881279785,5.56,186.28,186.25,2.686]
[1736881283083,5.56,186.28,186.19,12.44675588]
[1736881283683,5.56,186.28,186.26,2.6857]
[1736881284288,5.56,186.28,186.19,12.44675588]
[1736881284588,5.56,186.28,186.27,2.6857]
[1736881285091,10.5262,186.33,186.3,2.6853]
[1736881285486,13.2111,186.33,186.3,2.6853]
[1736881286190,13.2111,186.33,186.29,2.6854]
[1736881286399,7.6511,186.33,186.22,12.44675588]
[1736881286592,8.8773,186.33,186.22,12.44675588]
[1736881286787,20.69145588,186.34,186.22,12.44675588]
[1736881287093,12.44675588,186.34,186.25,12.44675588]
[1736881287292,12.44675588,186.34,186.33,2.6848]
[1736881287894,12.44675588,186.34,186.25,12.44675588]
[1736881288188,12.44675588,186.34,186.32,2.6849]
[1736881290089,12.44675588,186.34,186.33,2.6848]
[1736881290304,8.2444,186.36,186.33,2.6848]
[1736881292491,12.44675588,186.37,186.25,12.44675588]
[1736881292695,12.44675588,186.37,186.28,12.44675588]
[1736881292995,5.56,186.39,186.36,2.6843]
[1736881293190,5.56,186.39,186.28,12.44675588]
[1736881293399,12.44675588,186.4,186.28,12.44675588]
[1736881293586,18.00675588,186.4,186.38,2.684]
[1736881294187,12.44675588,186.4,186.38,2.684]
[1736881294796,12.44675588,186.4,186.39,2.684]
[1736881295799,5.56,186.41,186.39,2.684]
[1736881296502,2.6836,186.42,186.4,2.6838]
[1736881296996,17.98675588,186.43,186.32,3.2521]
[1736881297194,2.6837,186.41,186.38,2.684]
[1736881297391,12.44675588,186.4,186.32,3.2521]
[1736881297598,12.44675588,186.37,186.33,2.6848]
[1736881297897,12.44675588,186.37,186.25,34.65932524]
[1736881297898,12.44675588,186.34,186.25,32.84055914]
[1736881298294,15.13145588,186.34,186.31,2.685]
[1736881298799,12.44675588,186.34,186.25,3.2238]
[1736881299104,5.56,186.36,186.25,15.67055588]
[1736881299399,5.56,186.36,186.34,2.6846]
[1736881300103,5.56,186.36,186.25,15.67055588]
[1736881300104,5.56,186.36,186.35,2.6845]
[1736881302105,5.56,186.36,186.25,3.2238]
[1736881302299,12.44675588,186.33,186.25,3.2238]
[1736881302698,12.44675588,186.33,186.3,2.6852]
[1736881303506,12.44675588,186.33,186.31,2.6851]
[1736881305508,2.685,186.32,186.29,2.6853]
[1736881306906,2.685,186.32,186.3,2.6852]
[1736881307708,2.685,186.32,186.29,2.6854]
[1736881309908,2.685,186.32,186.24,101.06333555]
[1736881310109,2.685,186.32,186.3,2.6852]
[1736881311511,12.44675588,186.33,186.24,101.06333555]
[1736881311713,7.1631,186.36,186.26,12.44675588]
[1736881312110,2.6846,186.35,186.32,2.6849]
[1736881312404,2.6846,186.35,186.26,12.44675588]
[1736881312405,7.1631,186.36,186.26,12.44675588]
[1736881312606,9.8476,186.36,186.33,2.6848]
[1736881312812,7.1631,186.36,186.33,2.6848]
[1736881313214,7.1631,186.36,186.33,2.6847]
[1736881314217,9.8475,186.36,186.33,2.6847]
[1736881315315,7.1631,186.36,186.34,2.6846]
[1736881316515,5.54,186.36,186.34,2.6846]
[1736881316913,8.2244,186.36,186.33,2.6848]
[1736881317509,7.97063131,186.35,186.33,6.55]
[1736881318313,2.6847,186.34,186.33,6.55]
[1736881318716,7.97063131,186.35,186.33,6.55]
[1736881319417,8.2244,186.36,186.33,9.2348]
[1736881320316,2.6846,186.35,186.33,9.2348]
[1736881322110,5.54,186.36,186.33,6.55]
[1736881322311,2.6847,186.34,186.33,6.55]
[1736881322519,12.45352119,186.34,186.24,101.06333555]
[1736881323607,2.6849,186.33,186.24,101.06333555]
[1736881323809,5.54,186.36,186.26,12.45352119]
[1736881324220,3.2576,186.37,186.26,12.45352119]
[1736881324417,148.13505988,186.45,186.32,12.45352119]
[1736881324624,0.90178789,186.44,186.35,12.45352119]
[1736881324915,2.6834,186.43,186.4,2.6837]
[1736881325320,5.78952,186.46,186.35,12.45352119]
[1736881325534,0.22952,186.46,186.38,12.45352119]
[1736881325916,5.56,186.49,186.46,2.6829]